Cogmind - Beta 14 @@@ ROGUE MODE // 2025.03.12 @ 22:18:05 Player: Zargoosa Result: Destroyed by D-53 Grenadier with Mini Grenade Launcher Performance ------------- Evolutions (1) 500 Regions Visited (3) 600 Robots Destroyed (9) 45 Value Destroyed (304) 304 Prototype IDs (0) 0 Alien Tech Used (0) 0 Bonus (0) 0 TOTAL SCORE: 1449 Bonus ------- None Cogmind --------- Core Integrity 0/400 Matter 270/300 Energy 71/100 System Corruption 0% Temperature Cool (0) Movement Core (400) Ox7 Location -9/Mines Parts ------- > --- POWER (1) -------- (None) > --- PROPULSION (2) --- (None) > --- UTILITY (3) ------ Large Storage Unit Melee Analysis Suite > --- WEAPON (3) ------- Katana > --- INVENTORY (15) --- Ion Engine Light Ion Engine Light Treads Wheel Compact Matter Pod (150) Targeting Computer Light Armor Plating Light Armor Plating Medium Laser Grenade Launcher Peak State ------------ > --- POWER ------------ Ion Engine > --- PROPULSION ------- Wheel Compact Wheel > --- UTILITY ---------- Large Storage Unit Targeting Computer Targeting Computer > --- WEAPON ----------- Light Assault Rifle Light Assault Rifle Heavy Assault Rifle > --- INVENTORY -------- Ion Engine Light Ion Engine Light Treads Wheel Wheel Wheel Compact Matter Pod Targeting Computer Melee Analysis Suite Light Armor Plating Light Armor Plating Hardened Light Armor Plating Medium Laser Grenade Launcher Katana [Rating: 12] Favorites ----------- Power Light Ion Engine Engine Light Ion Engine Propulsion Wheel Treads Light Treads Wheel Wheel Utility Targeting Computer Device Heat Sink Storage Large Storage Unit Processor Targeting Computer Protection Hardened Light Armor Plating Weapon Light Assault Rifle Energy Gun Medium Laser Ballistic Gun Light Assault Rifle Slashing Weapon Katana Build | -11 -10 -9 -9 ------- Run | Yrd Mat Mat Min Slots Evolved 2 | . . 2 . Power . | . . . . Propulsion . | . . . . Utility 1 | . . 1 . Weapon 1 | . . 1 . Parts Attached 21 | 8 4 4 5 Power 2 | 1 . 1 . Engine 2 | 1 . 1 . Core . | . . . . Reactor . | . . . . Propulsion 6 | 3 1 . 2 Treads 1 | 1 . . . Leg . | . . . . Wheel 5 | 2 1 . 2 Hover . | . . . . Flight . | . . . . Utility 8 | 1 3 2 2 Device 1 | . 1 . . Storage 3 | 1 1 1 . Processor 3 | . 1 1 1 Hackware . | . . . . Protection 1 | . . . 1 Artifact . | . . . . Weapon 5 | 3 . 1 1 Energy Gun 1 | 1 . . . Energy Cannon . | . . . . Ballistic Gun 3 | 2 . 1 . Ballistic Cannon . | . . . . Launcher . | . . . . Special Weapon . | . . . . Impact Weapon . | . . . . Slashing Weapon 1 | . . . 1 Piercing Weapon . | . . . . Special Melee Weapon . | . . . . Unidentified Prototypes . | . . . . Parts Lost 11 | . . . 11 Power 1 | . . . 1 Propulsion 4 | . . . 4 Utility 3 | . . . 3 Weapon 3 | . . . 3 Highest Loss Streak 11 | . . . 11 To Critical Strikes . | . . . . Average Slot Usage (%) 93 | . 91 98 86 Engine 11 | . 14 11 9 Wheel 23 | . 28 22 19 Device 1 | . 5 . . Storage 12 | . 14 11 11 Processor 14 | . 1 22 19 Ballistic Gun 29 | . 28 31 24 Peak Build Rating 12 | 6 8 11 12 Average Rating 8 | 4 6 10 11 On Entrance 6 | . 6 8 11 Naked Turns . | . . . . Heaviest Build 30 | 11 15 30 30 Greatest Support 26 | 26 26 26 26 Greatest Overweight (x) 8 | . . 1 8 Average Overweight (x) . | . . . 1 Largest Inventory Capacity 15 | 8 10 15 15 Average Capacity 11 | 6 8 13 15 Most Carried 15 | 4 10 14 15 Average Carried 9 | 2 6 11 14 Final Capacity 15 | 8 10 15 15 Final Carried 14 | 4 10 14 10 Class Distribution -------------------- 50% | Mutant 49% | Gunner Dominant Class ---------------- Mutant | -10/Materials Gunner | -9/Materials Gunner | -9/Mines Resources | -11 -10 -9 -9 ----------- Run | Yrd Mat Mat Min Matter Collected 468 | 212 91 155 10 Remotely . | . . . . Salvage Created 424 | . 151 273 . Parts 28 | . 9 19 . Haulers Intercepted 1 | . 1 . . Recyclers Shooed 1 | . 1 . . Parts Field Recycled . | . . . . Retrieved Matter . | . . . . Parts Self-Destructed . | . . . . Prevented . | . . . . Kills | -11 -10 -9 -9 ------- Run | Yrd Mat Mat Min Combat Hostiles Destroyed 7 | . 2 5 . Guns 7 | . 2 5 . Classes Destroyed 5 | . 2 3 . Hauler 1 | . 1 . . Operator 1 | . . 1 . Grunt 4 | . 2 2 . Duelist 1 | . . 1 . Sentry 2 | . . 2 . Best Kill Streak 2 | . 2 2 . Combat Bots Only 2 | . 2 2 . Max Kills in Single Turn 1 | . 1 1 . Gunslinging . | . . . . Exploded . | . . . . Melee . | . . . . Uniques/NPCs Destroyed . | . . . . Combat | -11 -10 -9 -9 -------- Run | Yrd Mat Mat Min Hostile Shots Fired 57 | . 9 20 28 Missed 8 | . . 7 1 Damage Taken 1356 | . 112 207 1037 Core 478 | . 66 20 392 Absorbed by Shields . | . . . . Core Remaining (%) 86 | 100 73 . . Volleys Fired 32 | . 14 18 . Largest 3 | . 2 3 . Hottest 63 | . 40 63 . Shots Fired 77 | . 28 49 . Gun 77 | . 28 49 . Cannon . | . . . . Launcher . | . . . . Special . | . . . . Kinetic 77 | . 28 49 . Thermal . | . . . . Explosive . | . . . . Electromagnetic . | . . . . Robot Hit Streak 19 | . 7 19 . Robot Miss Streak 2 | . 2 1 . Penetration Max . | . . . . Secondary Targets 1 | . . 1 . Max Gunslinging Chain 1 | . . 1 . Shots Hit Robots 57 | . 17 40 . Core Hits 25 | . 10 15 . Critical Kills . | . . . . Critical Parts Destroyed . | . . . . Critical Strikes . | . . . . Melee Attacks 1 | . . . 1 Impact . | . . . . Slashing 1 | . . . 1 Piercing . | . . . . Sneak Attacks . | . . . . Combat Hostiles . | . . . . Follow-up Attacks . | . . . . Damage Inflicted 537 | . 154 383 . Guns 537 | . 154 383 . Cannons . | . . . . Explosions . | . . . . Melee . | . . . . Ramming . | . . . . Kinetic 537 | . 154 383 . Thermal . | . . . . Explosive . | . . . . Electromagnetic . | . . . . Impact . | . . . . Slashing . | . . . . Piercing . | . . . . Highest Corruption . | . . . . Average Corruption . | . . . . Corruption Purged . | . . . . Corruption Blocked . | . . . . Overload Shots . | . . . . Overflow Damage . | . . . . Projectiles . | . . . . Explosions . | . . . . Melee . | . . . . Knockbacks . | . . . . Impact . | . . . . Kinetic . | . . . . Secondary . | . . . . Self-Inflicted Damage . | . . . . Shots . | . . . . Rammed . | . . . . Targets Rammed . | . . . . Kicked . | . . . . Crushed . | . . . . Highest Temperature 44 | . 18 44 . Average Temperature 16 | . 9 18 . Received Heat Transfer 120 | . 66 54 . Siege Activations . | . . . . Robots Corrupted . | . . . . Combat Hostiles . | . . . . Parts Fried . | . . . . Impact Corruptions . | . . . . Robots Melted . | . . . . Combat Hostiles . | . . . . Parts Melted . | . . . . Heat Transferred . | . . . . Parts Sabotaged . | . . . . Parts Stolen . | . . . . Parts Stripped . | . . . . Power Chain Reactions . | . . . . Alert | -11 -10 -9 -9 ------- Run | Yrd Mat Mat Min Peak Influence 248 | . 87 248 96 Initial 96 | . . 36 96 Average 90 | . 40 143 79 Maximum Alert Level 1 | . . 1 . Low Security (%) 87 | 100 100 72 100 Level 1 12 | . . 27 . Level 2 . | . . . . Level 3 . | . . . . Level 4 . | . . . . Level 5 . | . . . . High Security . | . . . . Max Security . | . . . . Squads Dispatched 2 | . 1 1 . Investigation . | . . . . Extermination . | . . . . Reinforcement 2 | . 1 1 . Assault . | . . . . Garrison . | . . . . Intercept . | . . . . Searches Triggered . | . . . . Construction Impeded . | . . . . Haulers Reinforced . | . . . . Active Scanning Responses . | . . . . Cargo Convoy Interrupts . | . . . . Stealth | -11 -10 -9 -9 --------- Run | Yrd Mat Mat Min Distress Signals 1 | . . 1 . Communications Jammed . | . . . . Distress Signals . | . . . . Times Spotted 14 | . 4 8 2 Peak Tracking Total 2 | . 2 2 2 Tactical Retreats . | . . . . Traps | -11 -10 -9 -9 ------- Run | Yrd Mat Mat Min Traps Triggered . | . . . . Indirectly . | . . . . Trap Hack Attempts . | . . . . Triggered . | . . . . Disarmed . | . . . . Reprogrammed . | . . . . Reused . | . . . . Traps Extracted . | . . . . Installed . | . . . . Triggered . | . . . . Machines | -11 -10 -9 -9 ---------- Run | Yrd Mat Mat Min Machines Disabled . | . . . . Max in Single Turn . | . . . . Machines Repaired . | . . . . Machines Dismantled . | . . . . Machines Sabotaged . | . . . . Overloaded Fab Kills . | . . . . Hacking | -11 -10 -9 -9 --------- Run | Yrd Mat Mat Min Machines Accessed 4 | . . 4 . Terminals 3 | . . 3 . Fabricators . | . . . . Repair Stations . | . . . . Recycling Units 1 | . . 1 . Scanalyzers . | . . . . Garrison Access . | . . . . Total Hacks 5 | . . 5 . Successful 2 | . . 2 . Failed 3 | . . 3 . Catastrophic 1 | . . 1 . Database Lockouts . | . . . . Manual 3 | . . 3 . Terminals 4 | . . 4 . Fabricators . | . . . . Repair Stations . | . . . . Recycling Units 1 | . . 1 . Scanalyzers . | . . . . Garrison Access . | . . . . Terminal Hacks 1 | . . 1 . Branch Access Points 1 | . . 1 . Fabricator Hacks . | . . . . Repair Station Hacks . | . . . . Recycling Unit Hacks 1 | . . 1 . Report Inventory 1 | . . 1 . Scanalyzer . | . . . . Garrison Access Hacks . | . . . . Unauthorized Hacks . | . . . . Terminals . | . . . . Fabricators . | . . . . Repair Stations . | . . . . Recycling Units . | . . . . Scanalyzers . | . . . . Garrison Access . | . . . . Data Cores Recovered . | . . . . Used . | . . . . Hacking Detections 2 | . . 2 . Full Trace Events . | . . . . Feedback Events . | . . . . Feedback Blocked . | . . . . Robot Schematics Acquired . | . . . . Robots Built . | . . . . Authchips . | . . . . Time . | . . . . Total Robot Build Rating . | . . . . Part Schematics Acquired . | . . . . Parts Built . | . . . . Authchips . | . . . . Time . | . . . . Total Part Build Rating . | . . . . Parts Repaired . | . . . . Time . | . . . . Parts Recycled . | . . . . Recycled Matter . | . . . . Retrieved Matter . | . . . . Retrieved Components . | . . . . Parts Scanalyzed . | . . . . Part Schematics Acquired . | . . . . Parts Damaged . | . . . . Bothacking | -11 -10 -9 -9 ------------ Run | Yrd Mat Mat Min Used RIF Installer . | . . . . Robots Hacked . | . . . . Non-combat . | . . . . Combat . | . . . . Robot Hacks Applied . | . . . . Relay Couplers Released . | . . . . Fabnet Peak Effective % . | . . . . Robots Rewired . | . . . . Allies Hacked . | . . . . Hacks Repelled . | . . . . Allies | -11 -10 -9 -9 -------- Run | Yrd Mat Mat Min Total Allies . | . . . . Largest Group . | . . . . Highest-Rated Group . | . . . . Highest-Rated Ally . | . . . . Total Orders . | . . . . Ally Attacks . | . . . . Total Damage . | . . . . Kills . | . . . . Allies Corrupted . | . . . . Allies Melted . | . . . . Intel | -11 -10 -9 -9 ------- Run | Yrd Mat Mat Min Robot Analysis Total . | . . . . Derelict Logs Recovered . | . . . . Drone Launches . | . . . . Drone Recoveries . | . . . . Exploration | -11 -10 -9 -9 ------------- Run | Yrd Mat Mat Min Turns Passed 782 | 64 242 354 122 Spaces Moved 572 | 55 214 212 91 Core 4 | 1 . . 3 Treads . | . . . . Legs . | . . . . Wheels 568 | 54 214 212 88 Hover . | . . . . Flight . | . . . . Fastest Speed 50 | 50 90 90 105 Average Speed 98 | 87 90 101 116 Slowest Speed 450 | 90 90 105 450 Overloaded Moves . | . . . . Propulsion Burnouts . | . . . . Robots Hopped . | . . . . Cave-ins Triggered . | . . . . Exploration Rate (%) 20 | 3 36 26 15 Regions Visited 3 Branch Regions 1 Pre-discovered Areas . | . . . . Known Exits Taken 1 | . . 1 . Unknown Exits Taken 2 | 1 1 . . Scrap Searched . | . . . . Spaces Dug . | . . . . Terrain Destroyed . | . . . . Melee . | . . . . Projectile . | . . . . AOE . | . . . . Terrain Rammed . | . . . . Walls Destroyed . | . . . . Machines Disabled . | . . . . Actions | -11 -10 -9 -9 --------- Run | Yrd Mat Mat Min Total 732 | 67 240 318 107 Wait 88 | . . 79 9 Move 569 | 54 213 211 91 Hop . | . . . . Pick Up 17 | 4 7 5 1 Fast Attach 8 | 6 1 1 . Attach 7 | 1 . 1 5 Detach 1 | 1 . . . Swap 6 | 1 3 2 . Drop 3 | . 2 1 . Fire 32 | . 14 18 . Melee 1 | . . . 1 Ram . | . . . . Kick . | . . . . Crush . | . . . . Escape Stasis . | . . . . Rewire . | . . . . Trap . | . . . . Miscellaneous . | . . . . Route ------- -11/Scrapyard -10/Materials -9/Materials (discovered 2 exits: *Min x2) -9/Mines History --------- Turn | Location | Event 9 | -11/Scrapyard | Discovered new exit (range 15) 65 | -11/Scrapyard | Entered Materials 262 | -10/Materials | Discovered new exit (range 14) 307 | -10/Materials | Entered another Materials area 307 | -9/Materials | Evolved 2 slots: Utility x1, Weapon x1 328 | -9/Materials | Build established: Mutant 599 | -9/Materials | Identified exit to Mines 661 | -9/Materials | Entered Mines 666 | -9/Mines | Build established: Gunner 711 | -9/Mines | Assembled infested the area 768 | -9/Mines | Core integrity fell below 50% 778 | -9/Mines | Core integrity fell below 20% 783 | -9/Mines | Destroyed by D-53 Grenadier with Mini Grenade Launcher Last Messages --------------- 00761_ Matter Pump disabled. 00762_ The unstable cave ceiling collapses. 00763_ Ion Engine destroyed. 00763_ Targeting Computer destroyed. 00765_ The unstable cave ceiling collapses. 00767_ Targeting Computer destroyed. 00768_ U-05 Engineer lays Concrete. 00771_ The unstable cave ceiling collapses. 00771_ U-05 Engineer lays Concrete. 00771_ Wheel destroyed. 00772_ U-05 Engineer lays Concrete. 00773_ The unstable cave ceiling collapses. 00773_ U-05 Engineer lays Concrete. 00773_ U-05 Engineer destroyed. 00773_ Wheel destroyed. 00777_ The unstable cave ceiling collapses. 00779_ Hrd. Light Armor Plating destroyed. 00779_ D-53 Grenadier destroyed. 00783_ The unstable cave ceiling collapses. 00783_ U-05 Engineer lays Concrete. Map ----- +----------------------------------------------------+ | ????????????????????????????????????????? | | ????????????????????????????????????????? | | ????????????????????????????????????????? | | ????????????????????????????????????????? | | ????????????????????????????????????????? | | ????????????????????????????????????????? | | ????????????????????????????????????????? | | ????????????????????????????????????????? | | ????????????????????????????????????????? | | ????????????????????????????????????????? | | ???????????????????? ???????????????????? | | ??????????????????? ??????????????????? | | ??????????????????? ??????????????????? | | ???####???????????? #??????????????????? | | ??## ###????????? ???????????????????? | | ??# #????????? #???????????????????? | | ??# #????????? ##??????????????????? | | ??# #????????? ###????????????????? | | ??# ##???????#t ##???????????????? | | ??# ######## u #???????????????? | | ?## #?##?##?????????? | | ?# ??????????? | | ?# !! ! # ??????????????? | | ?# !!!! # #?????????????????? | | ?# ! ! # #??????????????????? | | ?# !!!! # @ #??????????????????? | | ?# # #??# #????????????? | | ?######## d ???????????? | | ????????# ???????????? | | ????????# ?????????? | | ????????# # """ ??????????? | | ????????# #### """????????????? | | ????????# #???# ""?????????????? | | ????????## ##???? ?????????????? | | ???????#### ###?????? ????????????? | | ???????# #?????????## ????????????? | | ???????# ### ##????????????#????????????? | | ???????# #?###??????????????????????????? | | ???????# #??????????????????????????????? | | ???????# #######????????????????????????? | | ???????# #????????????????????????? | | ???????####### #????????????????????????? | | ?????????????# #????????????????????????? | | ?????????????# #????????????????????????? | | ?????????????# #????????????????????????? | | ????????????? %????????????????????????? | | ?????????????###????????????????????????? | | ????????????????????????????????????????? | | ????????????????????????????????????????? | | ????????????????????????????????????????? | +----------------------------------------------------+ Best States ------------- Heat Dissipation 35 Energy Generation 10 Energy Capacity 250 Matter Stores 300 Matter Capacity 300 Sight Range 16 Terrain Scan Density 10 Armor Coverage 150 Evasion (%) 44 Targeting Accuracy 10 Melee Accuracy 5 Item Schematics ----------------- None Robot Schematics ------------------ None Fabricated ------------ Nothing Alien Tech Used ----------------- None Achievements -------------- None Challenges ------------ None Game ------ Seed NeutrinoMolecularWartreads Manual? 0 Play Time 00:10:43 Cumulative 22.9 hours Start 2025.03.12 @ 22:00:53 End 2025.03.12 @ 22:18:05 Sessions 1 Manual Loads 0 Difficulty Rogue Special Mode None Game No. 44 Rogue 44 Adventurer 0 Explorer 0 Win Type - Total 0 Types 0/0/0/0/0/0/0/0/0 Lore% 12 Gallery% 24 Achievement% 23 Wizard Run 0 Options --------- Layout 1 ASCII 0 Keyboard 0 Movement Arrows Keybinds 0 Fullscreen 1 Font 16/SmallcapsGlow Map View 55x38 Zoom Use 0% Tactical HUD 1 Map Filters NONE Filters NONE Steam 1 RUN: 8869c3d9-d86e-4f68-9c1d-d2dc7b918d0d